bitfinex-derivatives/quotes_BTCF0:USTF0_20250823
["timestamp","ask_amount","ask_price","bid_price","bid_amount"]
[1755958549864,2.23174869,114930.0,114920.0,0.11654]
[1755958550069,2.23174869,114930.0,114920.0,0.12254]
[1755958550366,2.22974869,114930.0,114920.0,0.12254]
[1755958552361,2.22974869,114930.0,114920.0,0.12454]
[1755958555467,2.22974869,114930.0,114920.0,0.11097]
[1755958557163,2.22974869,114930.0,114920.0,0.12454]
[1755958559366,2.22974869,114930.0,114920.0,0.11097]
[1755958560171,2.22974869,114930.0,114920.0,0.07881]
[1755958560372,2.22974869,114930.0,114920.0,0.11194]
[1755958561168,1.73921357,114930.0,114920.0,0.11194]
[1755958561373,2.22974869,114930.0,114920.0,0.11194]
[1755958563573,2.22974869,114930.0,114920.0,0.12589]
[1755958565277,1.73921357,114930.0,114920.0,0.12589]
[1755958565676,2.22974869,114930.0,114920.0,0.12589]
[1755958566882,1.73921357,114930.0,114920.0,0.12589]
[1755958567078,2.22974869,114930.0,114920.0,0.12589]
[1755958567980,1.73921357,114930.0,114920.0,0.12589]
[1755958568179,2.22974869,114930.0,114920.0,0.12589]
[1755958570590,2.22974869,114930.0,114920.0,0.11194]
[1755958571885,0.89068357,114930.0,114920.0,1.35696024]
[1755958572091,0.73235592,114930.0,114920.0,1.54480734]
[1755958572281,0.4478319,114940.0,114930.0,0.1186959]
[1755958572586,0.4478319,114940.0,114930.0,0.99290621]
[1755958572783,0.46722099,114950.0,114940.0,0.204052]
[1755958572988,1.26742099,114950.0,114940.0,0.79458712]
[1755958573382,1.26742099,114950.0,114940.0,0.87259598]
[1755958573584,1.2480314,114950.0,114940.0,0.87259598]
[1755958574490,1.2480314,114950.0,114940.0,0.87282281]
[1755958574992,1.2480314,114950.0,114940.0,0.38306086]
[1755958575688,1.2480314,114950.0,114940.0,0.38506086]
[1755958576787,1.2579114,114950.0,114940.0,0.38506086]
[1755958577990,1.2719614,114950.0,114940.0,0.38506086]
[1755958578197,1.2719614,114950.0,114940.0,0.307052]
[1755958578691,0.4718014,114950.0,114940.0,0.307052]
[1755958578889,1.2718814,114950.0,114940.0,0.307052]
[1755958581594,1.2718814,114950.0,114940.0,0.38506086]
[1755958583494,1.2881869,114960.0,114950.0,0.2040445]
[1755958583791,0.4882269,114960.0,114950.0,0.3215295]
[1755958584691,0.4892269,114960.0,114950.0,0.3215295]
[1755958585794,0.4892269,114960.0,114950.0,0.39953836]
[1755958586392,0.4892269,114960.0,114950.0,0.3215295]
[1755958586592,0.4892269,114960.0,114950.0,0.3225295]
[1755958586892,0.04141,114960.0,114950.0,0.3225295]
[1755958587087,0.001,114960.0,114950.0,1.06329145]
[1755958587300,0.001,114960.0,114950.0,1.52409145]
[1755958588199,0.001,114960.0,114950.0,1.42409145]
[1755958588597,0.001,114960.0,114950.0,1.92409145]
[1755958589201,0.001,114960.0,114950.0,2.72393145]
[1755958589697,0.001,114960.0,114950.0,2.80194031]
[1755958589898,0.001,114960.0,114950.0,2.55194031]
[1755958590802,0.001,114960.0,114950.0,2.80194031]
[1755958591003,0.001,114960.0,114950.0,2.72393145]
[1755958592306,0.001,114960.0,114950.0,2.80194031]
[1755958593106,0.001,114960.0,114950.0,2.90194031]
[1755958593601,0.44878109,114990.0,114950.0,2.90274031]
[1755958593809,0.04162,114980.0,114970.0,1.15428385]
[1755958594003,0.1286217,114980.0,114970.0,0.90627516]
[1755958594210,0.1276217,114980.0,114970.0,0.90627516]
[1755958594902,0.0969317,114980.0,114970.0,0.90627516]
[1755958595498,0.00993,114980.0,114970.0,0.90627516]
[1755958597008,0.0969317,114980.0,114970.0,0.90827516]
[1755958597209,0.0979317,114980.0,114970.0,0.90827516]
[1755958597502,0.5087317,114980.0,114970.0,0.32878326]
[1755958597706,1.25029365,114980.0,114970.0,0.04243862]
[1755958597900,1.25029365,114980.0,114970.0,0.01955862]
[1755958598803,1.25029365,114980.0,114970.0,0.04243862]
[1755958599002,1.25029365,114980.0,114970.0,0.04143862]
[1755958599407,0.7595317,114980.0,114970.0,0.04143862]
[1755958599613,1.3083717,114980.0,114970.0,0.13427862]
[1755958599812,1.3113717,114980.0,114970.0,0.13427862]
[1755958600510,1.3123717,114980.0,114970.0,0.13327862]
[1755958601302,1.3113717,114980.0,114970.0,0.13327862]
[1755958601502,1.3123717,114980.0,114970.0,0.13327862]
[1755958602207,0.5127317,114980.0,114970.0,0.22028802]
[1755958602400,1.2936717,114980.0,114970.0,0.22028802]
[1755958603107,1.3113717,114980.0,114970.0,0.22028802]
[1755958603408,0.5117317,114980.0,114970.0,0.22028802]
[1755958603610,1.3113717,114980.0,114970.0,0.22028802]
[1755958604206,1.2936717,114980.0,114970.0,0.32028802]
[1755958604613,0.4940317,114980.0,114970.0,0.32028802]
[1755958608208,0.04523,114980.0,114970.0,0.32028802]
[1755958608409,0.04523,114980.0,114970.0,0.75909688]
[1755958608713,0.04623,114980.0,114970.0,0.75909688]
[1755958609709,0.04323,114980.0,114970.0,0.75909688]
[1755958610010,0.02433,114980.0,114970.0,1.01109688]
[1755958610217,0.00993,114980.0,114970.0,1.60185883]
[1755958610403,0.00993,114980.0,114970.0,2.10185883]
[1755958611215,0.01093,114980.0,114970.0,1.53308802]
[1755958611415,0.04323,114980.0,114970.0,1.64267835]
[1755958611618,0.04323,114980.0,114970.0,1.54267835]
[1755958612312,0.02433,114980.0,114970.0,1.72081896]
[1755958612514,0.00993,114980.0,114970.0,1.71981896]
[1755958612708,0.00993,114980.0,114970.0,2.02284997]
[1755958612915,0.00993,114980.0,114970.0,1.53208802]
[1755958613213,0.00993,114980.0,114970.0,2.10199007]
[1755958613717,0.00993,114980.0,114970.0,1.61122812]
[1755958613920,0.00993,114980.0,114970.0,1.53308802]
[1755958614115,0.00993,114980.0,114970.0,1.61123587]
[1755958614319,0.00993,114980.0,114970.0,1.25043587]
[1755958614614,0.00993,114980.0,114970.0,1.61123587]
[1755958614820,0.01093,114980.0,114970.0,1.61123587]
[1755958615221,0.00993,114980.0,114970.0,1.61123587]
[1755958615809,0.02533,114980.0,114970.0,1.61123587]
[1755958616319,0.02433,114980.0,114970.0,1.61123587]
[1755958616618,0.02433,114980.0,114970.0,1.61023587]
[1755958616821,0.02433,114980.0,114970.0,1.61123587]
[1755958617414,0.02433,114980.0,114970.0,1.61023587]
[1755958617609,0.02433,114980.0,114970.0,1.61123587]
[1755958618220,0.1113318,114980.0,114970.0,2.10199782]
[1755958618413,0.02533,114980.0,114970.0,2.00199782]
[1755958618721,0.1123321,114980.0,114970.0,2.00199782]
[1755958618922,0.1123321,114980.0,114970.0,1.26123587]
[1755958619221,0.02533,114980.0,114970.0,1.26123587]
[1755958619614,0.02433,114980.0,114970.0,1.26123587]
[1755958619817,0.00993,114980.0,114970.0,1.26123587]
[1755958620012,1.24183813,115000.0,114990.0,0.1264845]
[1755958620213,1.32982793,115000.0,114990.0,0.22315369]
[1755958620419,1.57982793,115000.0,114990.0,0.22315369]
[1755958620613,0.75019793,115000.0,114990.0,0.22315369]
[1755958621218,0.7390198,115000.0,114990.0,0.32315369]
[1755958621419,0.7400198,115000.0,114990.0,0.32315369]
[1755958622016,0.7400198,115000.0,114990.0,0.38568695]
[1755958622424,0.7410198,115000.0,114990.0,0.38568695]
[1755958622726,0.7430198,115000.0,114990.0,0.38568695]
[1755958623027,0.7430198,115000.0,114990.0,0.32315369]
[1755958624319,0.7430198,115000.0,114990.0,0.40130154]
[1755958624526,0.4920198,115000.0,114990.0,0.40130154]
[1755958624721,0.4930198,115000.0,114990.0,0.40130154]
[1755958624926,0.02737,115000.0,114990.0,0.76210154]
[1755958625329,0.01258,115000.0,114990.0,2.19838349]
[1755958625628,0.01258,115000.0,114990.0,1.70762154]
[1755958628234,0.003,115000.0,114990.0,1.70762154]
[1755958628419,0.003,115000.0,114990.0,2.12023564]
[1755958628926,0.003,115000.0,114990.0,1.70759222]
[1755958629128,0.003,115000.0,114990.0,2.19835417]
[1755958629721,0.001,115000.0,114990.0,2.19835417]
[1755958630221,0.1123497,115010.0,115000.0,0.205807]
[1755958630425,0.1123497,115010.0,115000.0,0.2839219]
[1755958631427,0.02437,115010.0,115000.0,0.2839219]
[1755958631728,0.02437,115010.0,115000.0,0.4839219]
[1755958632120,0.00958,115010.0,115000.0,0.4839219]
[1755958632318,0.01058,115010.0,115000.0,0.4839219]
[1755958632729,0.01258,115010.0,115000.0,0.4839219]
[1755958633331,0.01358,115010.0,115000.0,0.4839219]
[1755958633725,0.04523,115010.0,115000.0,0.4839219]
[1755958634228,0.04523,115010.0,115000.0,0.3839219]
[1755958634640,0.04523,115010.0,115000.0,0.305807]
[1755958635631,0.4930094,115010.0,115000.0,0.305807]
[1755958636228,0.1322094,115010.0,115000.0,0.305807]
[1755958637623,0.5107094,115010.0,115000.0,0.21882]
[1755958637827,0.5107094,115010.0,115000.0,0.205807]
[1755958638027,0.04523,115010.0,115000.0,0.305807]
[1755958639529,0.40603,115010.0,115000.0,0.305807]
[1755958639734,0.40503,115010.0,115000.0,0.305807]
[1755958640037,0.02737,115010.0,115000.0,0.305807]
[1755958640238,0.01258,115010.0,115000.0,0.305807]
[1755958641736,0.01358,115010.0,115000.0,0.305807]
[1755958641938,0.01258,115010.0,115000.0,0.305807]
[1755958642136,0.01258,115010.0,115000.0,0.3839219]
[1755958643238,0.01258,115010.0,115000.0,0.305807]
[1755958645244,0.01258,115010.0,115000.0,0.41539733]
[1755958646043,0.01258,115010.0,115000.0,0.38397638]
[1755958646246,0.003,115010.0,115000.0,0.38397638]
[1755958648434,0.1146294,115010.0,115000.0,0.38397638]
[1755958648736,0.1328394,115010.0,115000.0,0.38397638]
[1755958650742,0.4936394,115010.0,115000.0,0.38397638]
[1755958651644,0.40666,115010.0,115000.0,0.38397638]
[1755958651843,0.40666,115010.0,115000.0,0.305807]
[1755958652347,0.4936396,115010.0,115000.0,0.38397638]
[1755958652943,0.4936396,115010.0,115000.0,0.28397638]
[1755958653240,0.5103396,115010.0,115000.0,0.19698938]
[1755958653439,1.6121396,115010.0,115000.0,0.19654938]
[1755958653636,0.7613396,115010.0,115000.0,0.2053672]
[1755958653838,1.6120596,115010.0,115000.0,0.2053672]
[1755958655737,0.7613396,115010.0,115000.0,0.2053672]
[1755958656645,0.7613396,115010.0,115000.0,0.28353658]
[1755958657844,0.40666,115010.0,115000.0,0.38353658]
[1755958658044,0.4936396,115010.0,115000.0,0.38353658]
[1755958658244,0.4920296,115010.0,115000.0,0.38353658]
[1755958658443,0.4936396,115010.0,115000.0,0.3053672]
[1755958658649,0.4910296,115010.0,115000.0,0.41495753]
[1755958658851,0.38921,115010.0,115000.0,0.41495753]
[1755958659039,0.37361,115010.0,115000.0,0.41495753]
[1755958659245,0.4631996,115010.0,115000.0,0.41495753]
[1755958659448,0.4780396,115010.0,115000.0,0.3053672]
[1755958659640,0.4936396,115010.0,115000.0,0.3053672]
[1755958662547,0.4920296,115010.0,115000.0,0.38366056]
[1755958662948,0.4936396,115010.0,115000.0,0.38366056]
[1755958664953,0.1328396,115010.0,115000.0,0.38366056]
[1755958665557,0.04586,115010.0,115000.0,0.38366056]
[1755958666452,0.1328396,115010.0,115000.0,0.38366056]
[1755958670150,0.1328396,115010.0,115000.0,0.3053672]
[1755958671753,0.5113396,115010.0,115000.0,0.3053672]
[1755958673057,0.5113396,115010.0,115000.0,0.41495753]
[1755958673463,0.5113396,115010.0,115000.0,0.3053672]
[1755958675067,0.4936396,115010.0,115000.0,0.3053672]
[1755958675965,0.40666,115010.0,115000.0,0.3053672]
[1755958677164,0.40666,115010.0,115000.0,0.41495753]
[1755958678062,0.40666,115010.0,115000.0,0.49325467]
[1755958678266,0.40566,115010.0,115000.0,0.38366434]
[1755958678565,0.40405,115010.0,115000.0,0.38366434]
[1755958678779,0.40505,115010.0,115000.0,0.38366434]
[1755958679179,0.40666,115010.0,115000.0,0.38366434]
[1755958680382,0.4936396,115010.0,115000.0,0.38366434]
[1755958682776,0.5113396,115010.0,115000.0,0.38366434]
[1755958684284,1.00172097,115010.0,115000.0,0.87404571]
[1755958684482,0.5113396,115010.0,115000.0,0.87404571]
[1755958684683,1.00172097,115010.0,115000.0,0.87404571]
[1755958685482,1.00172097,115010.0,115000.0,0.3053672]
[1755958685683,1.00172097,115010.0,115000.0,0.79574857]
[1755958685886,1.00172097,115010.0,115000.0,0.86456232]
[1755958686469,0.40666,115010.0,115000.0,0.86456232]
[1755958686680,0.89704137,115010.0,115000.0,0.86456232]
[1755958686982,0.62322097,115010.0,115000.0,0.86456232]
[1755958687383,0.98402097,115010.0,115000.0,0.86456232]
[1755958687578,0.98402097,115010.0,115000.0,0.37418095]
[1755958687778,0.98402097,115010.0,115000.0,0.86456232]
[1755958687982,0.98402097,115010.0,115000.0,0.97418566]
[1755958688184,0.4936396,115010.0,115000.0,0.97418566]
[1755958688484,0.40666,115010.0,115000.0,0.97418566]
[1755958688782,0.4936396,115010.0,115000.0,0.41499054]
[1755958688986,0.4936396,115010.0,115000.0,0.90537191]
[1755958689284,0.1328396,115010.0,115000.0,0.90537191]
[1755958689675,0.4936396,115010.0,115000.0,0.90537191]
[1755958690584,0.4936396,115010.0,115000.0,0.41499054]
[1755958690784,0.4936396,115010.0,115000.0,0.90537191]
[1755958692880,0.4936396,115010.0,115000.0,0.3053672]
[1755958693188,0.4936396,115010.0,115000.0,0.79574857]
[1755958693695,0.4936396,115010.0,115000.0,0.87405165]
[1755958693982,0.4936396,115010.0,115000.0,0.79574857]
[1755958694186,0.37361,115010.0,115000.0,0.87405149]
[1755958694485,0.37361,115010.0,115000.0,0.48367012]
[1755958694674,0.37361,115010.0,115000.0,1.0428722]
[1755958695080,0.01281,115010.0,115000.0,0.96456928]
[1755958696191,0.01281,115010.0,115000.0,0.47418791]
[1755958696382,0.01281,115010.0,115000.0,0.96456928]
[1755958697183,0.01281,115010.0,115000.0,1.07419262]
[1755958699392,0.003,115010.0,115000.0,1.07419262]
[1755958700286,0.003,115010.0,115000.0,0.96456928]
[1755958700487,0.003,115010.0,115000.0,1.0741762]
[1755958702694,0.003,115010.0,115000.0,1.92535757]
[1755958702894,0.003,115010.0,115000.0,2.42535757]
[1755958704992,0.00028831,115010.0,115000.0,2.42535757]
[1755958705191,0.00028831,115010.0,115000.0,1.33498791]
[1755958705393,0.00028831,115010.0,115000.0,2.31575065]
[1755958705797,0.00028831,115010.0,115000.0,2.56575065]
[1755958705999,0.00028831,115010.0,115000.0,2.6752745]
[1755958706692,0.4978464,115030.0,115020.0,0.2256997]
[1755958706907,0.4991364,115030.0,115020.0,0.30391272]
[1755958707088,0.4991364,115030.0,115020.0,0.71608107]
[1755958708092,0.5001364,115030.0,115020.0,0.71608107]
[1755958709504,0.5001364,115030.0,115020.0,0.2256997]
[1755958709697,0.99051777,115030.0,115020.0,0.71608107]
[1755958709895,0.5001364,115030.0,115020.0,0.71608107]
[1755958710194,0.5001364,115030.0,115020.0,0.2256997]
[1755958710401,0.5001364,115030.0,115020.0,0.71608107]
[1755958711307,0.5001364,115030.0,115020.0,0.2256997]
[1755958711604,0.5001364,115030.0,115020.0,0.71608107]
[1755958712296,0.5001364,115030.0,115020.0,0.81608107]
[1755958712701,0.4988464,115030.0,115020.0,0.89429409]
[1755958712901,0.5001364,115030.0,115020.0,0.89429409]
[1755958714003,0.4115565,115030.0,115020.0,0.89429409]
[1755958714206,0.4115565,115030.0,115020.0,0.81708107]
[1755958714507,0.4126265,115030.0,115020.0,0.89529409]
[1755958714699,0.498301,115030.0,115020.0,0.89529409]
[1755958715007,0.499591,115030.0,115020.0,0.81708107]
[1755958715307,0.499591,115030.0,115020.0,0.3266997]
[1755958715607,0.499591,115030.0,115020.0,0.81708107]
[1755958716107,0.499591,115030.0,115020.0,0.3266997]
[1755958716307,0.499591,115030.0,115020.0,0.81708107]
[1755958716496,0.499591,115030.0,115020.0,0.3266997]
[1755958716704,0.499591,115030.0,115020.0,0.81708107]
[1755958717305,0.499591,115030.0,115020.0,0.3266997]
[1755958717706,0.499591,115030.0,115020.0,0.81708107]
[1755958718205,0.499591,115030.0,115020.0,0.89529409]
[1755958719505,0.4126265,115030.0,115020.0,0.89529409]
[1755958719709,0.499591,115030.0,115020.0,0.89529409]
[1755958721510,0.499591,115030.0,115020.0,0.81708107]
[1755958723209,0.4092665,115030.0,115020.0,0.3266997]
[1755958723507,0.4105565,115030.0,115020.0,0.3266997]
[1755958723805,0.4105565,115030.0,115020.0,0.89529409]
[1755958724898,0.0093,115030.0,115020.0,1.35609409]
[1755958725194,0.0093,115030.0,115020.0,1.27788107]
[1755958725401,0.01901407,115030.0,115020.0,1.27788107]
[1755958726108,0.01901407,115030.0,115020.0,0.7874997]
[1755958726405,0.01901407,115030.0,115020.0,1.27788107]
[1755958727806,0.02030407,115030.0,115020.0,0.7874997]
[1755958728008,0.02030407,115030.0,115020.0,1.27788107]
[1755958728311,0.0093,115030.0,115020.0,1.35602565]
[1755958728798,0.0192302,115030.0,115020.0,1.35602565]
[1755958728994,0.0093,115030.0,115020.0,1.35602565]
[1755958729206,0.490757,115040.0,115030.0,0.1353045]
[1755958729403,0.490757,115040.0,115030.0,0.79827587]
[1755958729804,0.490757,115040.0,115030.0,0.87642045]
[1755958730502,0.491757,115040.0,115030.0,0.87642045]
[1755958731012,0.492757,115040.0,115030.0,0.87642045]
[1755958731701,0.50254428,115040.0,115030.0,0.38603908]
[1755958731897,1.35702428,115040.0,115030.0,0.87642045]
[1755958732102,0.50125428,115040.0,115030.0,0.87642045]
[1755958732405,0.50254428,115040.0,115030.0,0.87642045]
[1755958733810,0.50254428,115040.0,115030.0,0.38603908]
[1755958734201,0.50254428,115040.0,115030.0,0.87642045]
[1755958734401,0.50154428,115040.0,115030.0,0.87642045]
[1755958735309,0.50054428,115040.0,115030.0,0.87642045]
[1755958736014,0.50054428,115040.0,115030.0,0.79827587]
[1755958736314,0.50154428,115040.0,115030.0,0.79827587]
[1755958736707,0.50254428,115040.0,115030.0,0.79827587]
[1755958736911,0.50254428,115040.0,115030.0,0.80847151]
[1755958737516,0.41558728,115040.0,115030.0,0.80847151]
[1755958738106,0.50254428,115040.0,115030.0,0.80847151]
[1755958738614,0.50254428,115040.0,115030.0,0.79827587]
[1755958738812,0.50254428,115040.0,115030.0,0.31809014]
[1755958739014,0.50154428,115040.0,115030.0,0.80847151]
[1755958739913,0.05278728,115040.0,115030.0,0.88661609]
[1755958740717,0.05278728,115040.0,115030.0,0.80847151]
[1755958740918,0.13974428,115040.0,115030.0,0.80847151]
[1755958741310,0.13974428,115040.0,115030.0,0.80847115]
[1755958741706,0.14074428,115040.0,115030.0,0.80847115]
[1755958742515,0.14174428,115040.0,115030.0,0.88657469]
[1755958742823,0.05478728,115040.0,115030.0,0.88657469]
[1755958743920,0.05478728,115040.0,115030.0,0.39619332]
[1755958744221,0.14174428,115040.0,115030.0,0.88657469]
[1755958744919,0.02007728,115040.0,115030.0,0.88657469]
[1755958745422,0.02007728,115040.0,115030.0,0.31808978]
[1755958745617,0.02007728,115040.0,115030.0,0.80847115]
[1755958746015,0.02007728,115040.0,115030.0,0.31808978]
[1755958746211,0.02007728,115040.0,115030.0,0.80847115]
[1755958746420,0.03392728,115040.0,115030.0,0.88651479]
[1755958746620,0.03392728,115040.0,115030.0,0.80847115]
[1755958747125,0.00978728,115040.0,115030.0,2.92281609]
[1755958747423,0.4574497,115050.0,115040.0,0.133967]
[1755958747615,0.4574497,115050.0,115040.0,0.88986028]
[1755958747814,0.4574497,115050.0,115040.0,0.90005494]
[1755958748016,0.4722997,115050.0,115040.0,0.90005494]
[1755958748221,0.4735897,115050.0,115040.0,0.90005494]
[1755958748526,0.4735897,115050.0,115040.0,0.82203224]
[1755958749029,0.48350082,115050.0,115040.0,0.82203224]
[1755958749617,0.48450082,115050.0,115040.0,0.82203224]
[1755958749819,0.48321082,115050.0,115040.0,0.90005494]
[1755958750017,0.38141112,115050.0,115040.0,0.33165087]
[1755958750219,0.38141112,115050.0,115040.0,0.82203224]
[1755958750420,0.38241112,115050.0,115040.0,0.82203224]
[1755958750616,0.38241112,115050.0,115040.0,0.33165087]
[1755958750817,0.38577112,115050.0,115040.0,0.33165087]
[1755958751015,0.40062112,115050.0,115040.0,0.82203224]
[1755958751322,0.39726112,115050.0,115040.0,0.82203224]
[1755958751523,0.39855112,115050.0,115040.0,0.82203224]
[1755958752514,0.48550052,115050.0,115040.0,0.82203224]
[1755958752714,0.46936052,115050.0,115040.0,0.82203224]
[1755958752911,0.37271112,115050.0,115040.0,0.82203224]
[1755958753622,0.41726112,115050.0,115040.0,0.82203224]
[1755958753823,0.50421052,115050.0,115040.0,0.33165087]
[1755958754026,0.52191052,115050.0,115040.0,0.82203224]
[1755958754227,0.50421052,115050.0,115040.0,0.33165087]
[1755958754418,0.50421052,115050.0,115040.0,0.82203224]
[1755958756225,0.41726112,115050.0,115040.0,0.82203224]
[1755958756621,0.41726112,115050.0,115040.0,0.82203236]
[1755958756926,0.41726112,115050.0,115040.0,0.90009918]
[1755958759732,0.41726112,115050.0,115040.0,0.90009911]
[1755958760029,0.52191052,115050.0,115040.0,0.86707911]
[1755958760326,1.01229189,115050.0,115040.0,0.16579074]
[1755958760531,1.26309189,115050.0,115040.0,0.10569074]
[1755958760830,1.26309189,115050.0,115040.0,0.05016392]
[1755958761423,1.26309189,115050.0,115040.0,0.07263216]
[1755958761628,1.75347326,115050.0,115040.0,0.03325216]
[1755958761821,0.0869645,115030.0,115020.0,0.12769442]
[1755958762021,2.14806587,115030.0,115020.0,0.12769442]
[1755958762225,2.14806587,115030.0,115020.0,0.11824442]
[1755958762427,2.14806587,115030.0,115020.0,0.0401776]
[1755958762626,1.6576845,115030.0,115020.0,0.0401776]
[1755958762833,2.14806587,115030.0,115020.0,0.0401776]
[1755958763033,2.14806587,115030.0,115020.0,0.0411776]
[1755958763337,2.14806587,115030.0,115020.0,0.0526276]
[1755958764428,1.6576845,115030.0,115020.0,0.0745976]
[1755958764633,1.6576845,115030.0,115020.0,0.0890976]
[1755958764838,1.6576845,115030.0,115020.0,0.1377076]
[1755958765426,0.8085645,115030.0,115020.0,0.2246797]
[1755958765624,1.6572045,115030.0,115020.0,0.2246797]
[1755958765926,1.57024,115030.0,115020.0,0.2246797]
[1755958766129,1.57024,115030.0,115020.0,0.3246797]
[1755958768939,1.20944,115030.0,115020.0,0.3246797]
[1755958771038,1.2964045,115030.0,115020.0,0.1526276]
[1755958771345,1.2964045,115030.0,115020.0,0.22124442]
[1755958771544,1.6572045,115030.0,115020.0,0.22124442]
[1755958771735,1.6572045,115030.0,115020.0,0.1431776]
[1755958772236,1.6572045,115030.0,115020.0,0.2071976]
[1755958772451,1.6572045,115030.0,115020.0,0.2363276]
[1755958772949,1.6572045,115030.0,115020.0,0.3232997]
[1755958776160,1.57024,115030.0,115020.0,0.3232997]
[1755958776559,1.6572045,115030.0,115020.0,0.3232997]
[1755958776852,1.6572045,115030.0,115020.0,0.38565369]
[1755958777750,0.7216,115030.0,115020.0,0.8436275]
[1755958777952,1.56824,115030.0,115020.0,0.8759575]
[1755958778256,1.56812,115030.0,115020.0,0.8759575]
[1755958778450,1.56812,115030.0,115020.0,0.38565369]
[1755958778654,0.7216,115030.0,115020.0,0.38565369]
[1755958778850,1.5678,115030.0,115020.0,0.38565369]
[1755958779051,1.5678,115030.0,115020.0,0.3232997]
[1755958779649,1.6547645,115030.0,115020.0,0.3232997]
[1755958779954,1.5678,115030.0,115020.0,0.3232997]
[1755958780559,0.8462,115030.0,115020.0,0.89167033]
[1755958780758,0.38010425,115040.0,115030.0,0.2047645]
[1755958780959,1.22522425,115040.0,115030.0,0.85741177]
[1755958781158,1.22522425,115040.0,115030.0,0.36710796]
[1755958781557,1.31218125,115040.0,115030.0,0.36710796]
[1755958782463,1.22522425,115040.0,115030.0,0.36710796]
[1755958782663,1.31218125,115040.0,115030.0,0.36710796]
[1755958784756,1.22522425,115040.0,115030.0,0.3047645]
[1755958784956,1.22522425,115040.0,115030.0,0.38283132]
[1755958785558,1.31218125,115040.0,115030.0,0.38283132]
[1755958786565,1.22522425,115040.0,115030.0,0.38283132]
[1755958787165,0.38010425,115040.0,115030.0,0.38283132]
[1755958787464,1.22346425,115040.0,115030.0,0.38283132]
[1755958788465,1.31042125,115040.0,115030.0,0.38283132]
[1755958790865,1.22346425,115040.0,115030.0,0.38283132]
[1755958791665,1.22346425,115040.0,115030.0,0.87313513]
[1755958792466,1.22346425,115040.0,115030.0,0.79506831]
[1755958793066,0.86266425,115040.0,115030.0,0.79506831]
[1755958793268,0.86266425,115040.0,115030.0,0.87303256]
[1755958793959,0.86266425,115040.0,115030.0,0.90459216]
[1755958794569,0.86266425,115040.0,115030.0,0.79506831]
[1755958795165,0.01930425,115040.0,115030.0,0.79506831]
[1755958796274,0.01930425,115040.0,115030.0,1.35741087]
[1755958796870,0.01930425,115040.0,115030.0,0.86710706]
[1755958797180,0.01930425,115040.0,115030.0,0.76710706]
[1755958797474,0.01930425,115040.0,115030.0,1.29506831]
[1755958798773,0.01930425,115040.0,115030.0,1.37301271]
[1755958799270,0.01930425,115040.0,115030.0,1.29506831]
[1755958800374,0.46706125,115040.0,115030.0,0.7047645]
[1755958800966,0.46706125,115040.0,115030.0,0.78271199]
[1755958802276,0.46706125,115040.0,115030.0,0.28271199]
[1755958802875,0.38010425,115040.0,115030.0,0.28271199]
[1755958803878,0.46706125,115040.0,115030.0,0.38271199]
[1755958804984,0.46706125,115040.0,115030.0,0.28271199]
[1755958805198,0.46706125,115040.0,115030.0,0.19574749]
[1755958806286,0.46706125,115040.0,115030.0,0.68586749]
[1755958806782,0.46706125,115040.0,115030.0,0.16341749]
[1755958806982,1.20718125,115040.0,115030.0,0.0343]
[1755958807178,1.20718125,115040.0,115030.0,0.02465]
[1755958808284,0.71706125,115040.0,115030.0,0.02465]
[1755958809480,0.71706125,115040.0,115030.0,0.08707965]
[1755958810785,1.20807691,115040.0,115030.0,0.06242965]
[1755958811083,0.0869645,115030.0,115020.0,0.11837509]
[1755958811284,1.2865645,115030.0,115020.0,0.11837509]
[1755958811678,2.02678016,115030.0,115020.0,0.1580196]
[1755958811880,2.02678016,115030.0,115020.0,0.08007211]
[1755958812183,2.02678016,115030.0,115020.0,0.08207211]
[1755958813183,2.02678016,115030.0,115020.0,0.0196376]
[1755958813383,2.02678016,115030.0,115020.0,0.0216376]
[1755958813690,1.5365645,115030.0,115020.0,0.0216376]
[1755958813886,2.02678016,115030.0,115020.0,0.0216376]
[1755958816086,2.02878016,115030.0,115020.0,0.0196376]
[1755958816379,2.02878016,115030.0,115020.0,0.0176376]
[1755958816585,2.02978016,115030.0,115020.0,0.0176376]
[1755958821686,3.68314016,115030.0,115020.0,0.0176376]
[1755958822781,3.1929245,115030.0,115020.0,0.0176376]
[1755958822983,3.68314016,115030.0,115020.0,0.0176376]
[1755958824894,0.0869721,115020.0,115010.0,0.02279]
[1755958825089,0.46716383,115020.0,115010.0,0.02279]
[1755958825288,0.0869872,115000.0,114990.0,0.06338]
[1755958825490,1.6433872,115000.0,114990.0,0.09596]
[1755958825795,1.6433872,115000.0,114990.0,0.11875]
[1755958826387,1.6433872,115000.0,114990.0,0.36875]
[1755958826792,1.6433872,115000.0,114990.0,0.08617]
[1755958826996,1.6433872,115000.0,114990.0,0.08817]
[1755958827199,1.6433872,115000.0,114990.0,0.12275]
[1755958827595,1.6443872,115000.0,114990.0,0.12075]
[1755958828500,1.71566422,115000.0,114990.0,0.12075]
[1755958829000,1.6443872,115000.0,114990.0,0.12075]
[1755958830096,1.6443872,115000.0,114990.0,0.11875]
[1755958830602,0.8095872,115000.0,114990.0,0.11875]
[1755958830807,1.6440672,115000.0,114990.0,0.11875]
[1755958833704,1.71388291,115000.0,114990.0,0.11875]
[1755958836906,0.3618,115000.0,114990.0,1.04710046]
[1755958837113,0.83344,115000.0,114990.0,1.48584795]
[1755958837410,0.001,115000.0,114990.0,1.54809816]
[1755958837705,0.46976983,115020.0,115010.0,0.11877]
[1755958837903,1.30228983,115020.0,115010.0,0.11877]
[1755958839306,1.30528983,115020.0,115010.0,0.11877]
[1755958840505,0.47276983,115020.0,115010.0,0.11877]
[1755958840698,1.30500983,115020.0,115010.0,0.11877]
[1755958841402,1.30700983,115020.0,115010.0,0.11877]
[1755958843602,0.47476983,115020.0,115010.0,0.11877]
[1755958843801,1.30564983,115020.0,115010.0,0.11877]
[1755958846113,0.47476983,115020.0,115010.0,0.11877]
[1755958846316,1.30472983,115020.0,115010.0,0.11877]
[1755958847210,0.47476983,115020.0,115010.0,0.11877]
[1755958847412,1.30424983,115020.0,115010.0,0.26799275]
[1755958848318,1.30424983,115020.0,115010.0,0.18101305]
[1755958850409,1.30124983,115020.0,115010.0,0.18101305]
[1755958850719,1.29924983,115020.0,115010.0,0.18101305]
[1755958851110,1.29832983,115020.0,115010.0,0.18101305]
[1755958852019,1.29812983,115020.0,115010.0,0.18101305]
[1755958852222,1.29812983,115020.0,115010.0,0.11877]
[1755958852517,1.21115173,115020.0,115010.0,0.18101305]
[1755958852716,1.21047173,115020.0,115010.0,1.10820811]
[1755958852910,0.38279173,115020.0,115010.0,1.10820811]
[1755958853109,1.21047173,115020.0,115010.0,1.10820811]
[1755958853615,0.38179173,115020.0,115010.0,1.10820811]
[1755958853816,0.82736,115020.0,115010.0,1.4329009]